bitfinex/quotes_ETHUSD_20260129
["timestamp","ask_amount","ask_price","bid_price","bid_amount"]
[1769697751073,0.001,2908.9,2908.3,0.85958668]
[1769697751273,0.001,2908.9,2908.4,0.50181331]
[1769697751444,0.001,2908.9,2908.4,1.36139174]
[1769697751646,0.001,2908.9,2908.2,0.72]
[1769697752165,0.001,2908.9,2908.2,1.57963342]
[1769697752545,0.001,2908.9,2908.2,0.72]
[1769697752744,0.001,2908.9,2908.2,1.57963765]
[1769697752940,0.001,2909.5,2908.4,0.85957478]
[1769697753340,0.001,2909.5,2908.5,0.4297923]
[1769697753947,0.001,2909.5,2908.6,0.72]
[1769697754694,0.001,2909.5,2908.5,0.72]
[1769697755049,0.001,2909.5,2908.4,0.85955769]
[1769697755248,0.001,2909.5,2908.5,0.72]
[1769697756448,0.001,2909.5,2908.6,0.72]
[1769697756866,3.77613488,2909.5,2908.0,0.85969738]
[1769697757045,0.37761349,2909.4,2908.1,0.72]
[1769697758075,0.85931323,2909.3,2908.1,1.57966217]
[1769697758280,0.85931323,2909.3,2908.1,0.72]
[1769697758482,4.63444811,2909.3,2907.7,0.002]
[1769697759503,3.77513488,2909.1,2907.4,0.002]
[1769697759654,3.77513488,2908.7,2907.2,0.002]
[1769697759860,3.77513488,2908.6,2906.1,0.86024263]
[1769697760184,3.77513488,2908.2,2906.4,0.72]
[1769697761188,3.77513488,2908.2,2906.4,1.58016706]
[1769697762096,0.85966782,2908.1,2906.4,1.58016706]
[1769697762465,0.85966782,2908.1,2906.5,3.9026652]
[1769697762792,0.85966782,2908.1,2906.7,3.9026652]
[1769697763090,0.85966782,2908.1,2906.7,3.86861743]
[1769697763317,4.6348027,2908.1,2906.6,0.54828323]
[1769697763455,4.6348027,2908.1,2906.0,0.002]
[1769697764013,3.77513488,2907.9,2906.0,0.002]
[1769697764321,3.77513488,2907.7,2906.0,0.002]
[1769697764683,3.77513488,2907.7,2906.6,0.002]
[1769697764884,4.23862402,2907.6,2906.6,0.002]
[1769697765204,4.23862402,2907.6,2906.0,0.002]
[1769697766128,3.77513488,2907.4,2906.0,0.002]
[1769697766628,3.77513488,2907.4,2905.6,1.09239795]
[1769697766927,3.77513488,2907.4,2905.6,0.86040518]
[1769697767226,3.77513488,2907.2,2905.6,1.36271922]
[1769697767729,0.46349801,2907.3,2905.6,1.36271922]
[1769697767925,0.85984522,2907.5,2905.6,1.36271922]
[1769697768237,4.6349801,2907.5,2905.6,1.36271922]
[1769697768594,4.6349801,2907.5,2905.7,0.721]
[1769697768902,4.6349801,2907.5,2905.6,2.08371464]
[1769697769305,0.85984522,2907.5,2905.8,3.9026652]
[1769697769507,0.85984522,2907.5,2905.9,4.25888395]
[1769697770236,0.85984522,2907.5,2906.0,0.86028905]
[1769697770611,0.85984522,2907.5,2906.0,4.72890648]
[1769697770932,0.85984522,2907.5,2906.1,0.721]
[1769697771137,1.32332373,2907.6,2906.2,4.31377058]
[1769697771341,3.43863349,2908.2,2906.2,4.31377058]
[1769697771513,3.77513488,2908.1,2906.2,4.31377058]
[1769697771717,3.77513488,2908.1,2906.2,0.44515315]
[1769697771919,3.43863349,2908.2,2906.0,0.86028905]
[1769697771920,3.77513488,2907.9,2906.3,0.721]
[1769697772127,0.85975651,2907.8,2906.0,0.86028905]
[1769697772442,0.85975651,2907.8,2906.3,0.721]
[1769697772951,0.85974537,2907.9,2906.3,4.58961743]
[1769697773236,1.58109523,2908.0,2906.5,3.86861743]
[1769697773603,1.58109523,2908.0,2906.6,0.721]
[1769697774431,1.58109523,2908.0,2906.7,0.86008187]
[1769697775007,0.8596087,2908.3,2906.7,4.7286993]
[1769697776340,4.7189506,2908.3,2906.8,0.721]
[1769697776638,4.7189506,2908.3,2906.8,0.86003255]
[1769697777008,0.001,2907.8,2906.8,0.86003255]
[1769697777208,0.001,2907.8,2906.9,0.43002417]
[1769697778653,0.001,2907.8,2907.0,0.85999312]
[1769697779125,0.001,2907.8,2906.9,0.86001407]
[1769697780874,3.8603419,2907.8,2906.6,0.86008187]
[1769697781042,0.38603419,2907.7,2906.7,0.43004244]
[1769697781239,0.001,2907.8,2906.7,4.44256441]
[1769697781677,3.43790736,2908.8,2906.7,4.44256441]
[1769697781678,0.85940185,2909.0,2907.2,4.01252197]
[1769697782270,3.8593419,2909.1,2907.3,4.76756974]
[1769697782479,0.85929877,2909.4,2907.8,4.01252197]
[1769697782682,0.001,2909.5,2908.0,0.85969738]
[1769697782827,0.001,2909.5,2908.0,4.87221935]
[1769697783027,3.8603419,2910.0,2908.1,4.01252197]
[1769697783028,0.001,2910.0,2908.1,4.01252197]
[1769697783252,0.86010781,2910.0,2908.2,4.47488849]
[1769697783455,0.86010997,2910.0,2908.3,0.03404777]
[1769697783675,0.86010997,2910.0,2908.4,0.721]
[1769697784144,0.001,2910.0,2908.5,4.04656974]
[1769697784340,0.001,2910.0,2908.9,4.04656974]
[1769697784643,0.001,2910.0,2909.0,0.85940185]
[1769697785477,0.001,2910.0,2909.0,0.89344962]
[1769697786944,0.85987871,2910.8,2909.2,4.04656974]
[1769697787264,0.85987871,2910.8,2909.0,0.89344962]
[1769697787265,0.001,2910.8,2909.5,4.01252197]
[1769697787439,0.8598768,2910.8,2909.6,1.12465697]
[1769697787642,4.7192187,2910.8,2909.4,0.72]
[1769697787966,4.7192187,2910.8,2909.0,0.89344962]
[1769697787967,4.7192187,2910.8,2909.0,0.85940185]
[1769697788262,4.7192187,2910.8,2909.0,1.57940185]
[1769697788771,0.001,2909.8,2909.0,1.57940185]
[1769697788962,0.001,2909.8,2909.1,0.50170093]
[1769697789969,0.8598768,2910.8,2909.1,0.50170093]
[1769697790759,3.8593419,2910.7,2909.1,0.50170093]
[1769697790938,0.85892943,2910.6,2909.2,0.85934277]
[1769697791556,4.71827133,2910.6,2909.1,1.36105619]
[1769697791878,4.67474081,2910.5,2909.1,0.85935526]
[1769697793053,0.85898845,2910.4,2909.1,0.85935526]
[1769697794164,4.71833035,2910.4,2909.0,0.72]
[1769697794356,4.71833035,2910.4,2909.0,1.57939983]
[1769697794873,4.71833035,2910.4,2909.0,0.85939983]
[1769697795055,0.85904748,2910.2,2909.1,1.28904804]
[1769697795653,0.85904748,2910.2,2909.1,0.42970416]
[1769697795853,0.85904748,2910.2,2908.9,0.8594168]
[1769697795854,4.71838938,2910.2,2908.9,0.8594168]
[1769697796075,4.71838938,2910.2,2909.1,0.85936336]
[1769697796295,0.85904748,2910.2,2909.1,0.85936336]
[1769697796657,0.85895894,2910.5,2909.1,0.85936336]
[1769697796865,7.29510266,2910.6,2909.1,0.85936336]
[1769697796866,0.85894222,2910.6,2909.2,0.42968645]
[1769697797065,0.8588409,2910.9,2909.4,0.8592837]
[1769697797668,0.8588409,2910.9,2909.4,4.87180567]
[1769697797987,0.8588409,2910.9,2909.4,0.8592837]
[1769697798606,3.8603419,2910.8,2909.3,0.85929938]
[1769697798886,4.33126018,2910.7,2909.3,0.85929938]
[1769697799097,0.85892943,2910.6,2909.3,0.85929938]
[1769697799482,4.71827133,2910.6,2909.3,0.85929938]
[1769697799681,0.85892943,2910.6,2909.3,0.85929938]
[1769697800789,4.71827133,2910.6,2909.4,0.72]
[1769697800990,0.47665654,2910.5,2909.4,0.72]
[1769697801194,0.85898845,2910.4,2909.4,0.8592837]
[1769697801694,1.33562497,2910.5,2909.4,0.8592837]
[1769697801895,1.33562497,2910.5,2909.5,0.53601553]
[1769697802087,1.33562497,2910.5,2909.3,0.34373682]
[1769697802400,1.33562497,2910.5,2909.4,0.72]
[1769697803162,1.33562497,2910.5,2909.5,0.85925416]
[1769697803366,1.33562497,2910.5,2909.4,1.57927699]
[1769697803613,0.85896843,2910.5,2909.4,1.57927699]
[1769697803807,0.85896843,2910.5,2909.5,0.72]
[1769697804604,7.29585603,2910.8,2909.5,0.72]
[1769697804605,0.85892121,2910.7,2909.5,0.72]
[1769697804825,3.43656827,2910.8,2909.5,0.72]
[1769697804826,0.001,2910.8,2909.6,0.03404777]
[1769697805028,0.85988305,2910.8,2909.6,4.04656974]
[1769697805206,0.001,2910.8,2909.8,0.85916557]
[1769697805526,0.001,2910.8,2909.9,0.72]
[1769697807381,0.001,2910.8,2910.0,0.85910652]
[1769697808510,0.37230631,2911.3,2910.0,0.85910652]
[1769697808688,0.37230631,2911.3,2910.0,4.92902338]
[1769697808885,0.37230631,2911.3,2910.1,5.01591436]
[1769697809081,0.37230631,2911.3,2910.3,0.03404777]
[1769697809510,0.37230631,2911.3,2910.4,0.85898845]
[1769697809699,0.37230631,2911.3,2910.4,0.89303622]
[1769697810305,0.37230631,2911.3,2910.4,0.85898845]
[1769697810501,1.23103141,2911.3,2910.5,0.42578398]
[1769697810684,1.23103141,2911.3,2910.4,0.72]
[1769697810889,5.29574745,2911.3,2910.4,0.72]
[1769697811486,1.23103304,2911.3,2910.4,0.72]
[1769697811890,0.37230631,2911.3,2910.4,1.57896941]
[1769697812089,1.23104332,2911.3,2910.0,4.06991686]
[1769697812324,1.23104332,2911.3,2910.4,0.85897346]
[1769697812485,3.43364829,2912.4,2910.4,0.85897346]
[1769697812486,0.85852989,2912.0,2910.5,0.03404777]
[1769697812884,7.3498037,2912.1,2910.5,0.03404777]
[1769697812885,4.77424879,2912.1,2910.7,0.03404777]
[1769697813517,4.77424879,2912.1,2910.6,0.85892943]
[1769697814098,4.77424879,2912.1,2910.7,0.03404777]
[1769697814302,4.77424879,2912.1,2910.6,0.85892943]
[1769697814624,4.60441947,2912.1,2910.7,0.46691726]
[1769697814793,4.60441947,2912.1,2910.7,0.43286949]
[1769697814994,4.60441947,2912.1,2910.8,0.72]
[1769697815624,4.60441947,2912.1,2910.9,0.8588409]
[1769697815821,0.858494,2912.1,2910.9,0.8588409]
[1769697816023,3.43362033,2912.4,2911.0,0.501422]
[1769697816532,4.77415336,2912.4,2911.0,0.501422]
[1769697817412,4.77415336,2912.4,2911.1,0.72]
[1769697818031,4.77415336,2912.4,2911.2,0.8587524]
[1769697818532,4.77415336,2912.4,2911.1,1.57877151]
[1769697818728,0.82076545,2912.3,2911.2,0.40344222]
[1769697819130,4.77415336,2912.4,2911.2,0.40344222]
[1769697819501,4.77415336,2912.4,2911.2,1.12344222]
[1769697819703,0.85839857,2912.4,2911.2,1.12344222]
[1769697820232,3.91575479,2912.5,2911.2,1.98218712]
[1769697820402,3.91575479,2912.5,2911.2,1.12344222]
[1769697820605,3.43359428,2912.7,2911.3,0.19822083]
[1769697821007,3.91575479,2912.6,2911.3,0.19822083]
[1769697821197,3.43359428,2912.7,2911.3,0.19822083]
[1769697821409,7.18830277,2912.8,2911.3,0.19822083]
[1769697821633,7.18830277,2912.8,2911.4,0.21804068]
[1769697821837,0.85830277,2912.8,2911.4,0.21804068]
[1769697822131,3.43310211,2912.9,2911.5,0.85866391]
[1769697822515,0.85825122,2912.9,2911.5,5.03335315]
[1769697822710,0.85825122,2912.9,2911.5,4.99930538]
[1769697822919,0.85825122,2912.9,2911.6,0.51802998]
[1769697824720,4.77488817,2913.3,2911.7,0.85860493]
[1769697826919,0.001,2912.7,2911.7,0.85860493]
[1769697827322,0.001,2912.7,2911.7,4.9992464]
[1769697827523,0.85913338,2913.3,2911.9,4.14064147]
[1769697827722,0.85913338,2913.3,2912.0,4.54408369]
[1769697827924,0.85913338,2913.3,2912.0,0.40344222]
[1769697828117,0.85913338,2913.3,2911.8,0.03404777]
[1769697828422,0.85913338,2913.3,2911.7,4.9992464]
[1769697828729,0.85913338,2913.3,2911.7,5.03329417]
[1769697830257,0.85913338,2913.3,2911.9,4.17468924]
[1769697830550,0.001,2913.3,2912.1,4.14064147]
[1769697830861,0.001,2913.3,2911.5,3.46846752]
[1769697830862,3.91575479,2913.2,2910.8,1.70630852]
[1769697831066,3.91575479,2913.2,2909.1,2.77837228]
[1769697831067,3.91575479,2911.8,2909.5,0.002]
[1769697831276,3.91575479,2910.9,2908.9,3.625]
[1769697831563,0.002,2911.0,2908.5,0.85953657]
[1769697831564,3.91575479,2910.2,2908.5,0.85953657]
[1769697831727,3.91575479,2910.2,2908.0,1.63971218]
[1769697831728,3.91575479,2910.2,2907.2,3.47374211]
[1769697831922,4.30733027,2910.1,2907.8,4.03658265]
[1769697832163,4.30733027,2910.1,2907.3,1.57990437]
[1769697832164,3.91575479,2909.9,2907.3,5.61648702]
[1769697832482,3.91575479,2909.7,2907.3,4.89648702]
[1769697832626,1.39691082,2909.7,2907.4,0.72]
[1769697832826,3.91575479,2909.4,2907.4,0.72]
[1769697833018,3.91575479,2909.4,2907.5,0.72]
[1769697834426,0.85925416,2909.5,2907.2,0.85992046]
[1769697834427,3.91575479,2909.2,2907.2,0.72]
[1769697834637,3.91575479,2909.0,2907.2,0.72]
[1769697834822,3.91575479,2908.8,2907.2,0.72]
[1769697835522,3.91575479,2908.8,2906.3,0.03404777]
[1769697835523,3.91575479,2908.8,2906.5,0.03404777]
[1769697835859,3.91575479,2908.8,2906.4,0.72]
[1769697836030,3.87963934,2908.6,2906.4,0.72]
[1769697837062,3.87963934,2908.4,2906.4,0.72]
[1769697837427,3.87963934,2908.4,2906.4,1.58016561]
[1769697837632,3.87963934,2908.4,2906.5,0.03404777]
[1769697838373,3.87963934,2908.4,2906.4,0.72]
[1769697838532,4.35355823,2908.3,2906.4,1.58016477]
[1769697839067,0.85952004,2908.6,2907.1,0.03404777]
[1769697839240,4.73914897,2908.7,2907.2,0.03404777]
[1769697840376,4.73914897,2908.7,2906.9,4.28705989]
[1769697840680,0.85940185,2909.0,2907.5,0.03404777]
[1769697840857,0.85939293,2909.1,2907.7,0.03404777]
[1769697841034,0.85939293,2909.1,2907.8,0.72]
[1769697842772,3.87963934,2909.0,2907.8,0.72]
[1769697843127,4.73907074,2908.9,2907.1,0.03404777]
[1769697843328,4.73907074,2908.9,2907.2,0.72]
[1769697843531,4.73907074,2908.9,2907.2,1.57993291]
[1769697844036,3.4377256,2909.0,2907.2,1.57993291]
[1769697844037,0.85941762,2909.0,2907.5,0.03404777]
[1769697844342,4.73905696,2909.0,2907.4,0.8598648]
[1769697844671,4.73905696,2909.0,2907.8,0.85975174]
[1769697845174,4.73905696,2909.0,2907.5,3.47340246]
[1769697845327,4.73905696,2909.0,2907.6,0.85981565]
[1769697845535,4.73905696,2909.0,2907.5,0.03404777]
[1769697845731,4.73905696,2909.0,2907.6,0.72]
[1769697845732,3.87963934,2908.8,2907.6,0.72]
[1769697846542,0.81766107,2908.9,2907.6,0.72]
[1769697846762,0.85941762,2909.0,2907.6,0.72]
[1769697846946,4.73897019,2909.3,2907.7,0.02750653]
[1769697847362,4.73897019,2909.3,2907.8,0.85975651]
[1769697847673,0.85933085,2909.3,2907.8,0.85975651]
[1769697848541,0.85933085,2909.3,2907.9,0.72]
[1769697849047,0.85933085,2909.3,2907.9,0.74750653]
[1769697849262,3.43682885,2909.7,2908.0,0.85969738]
[1769697849573,4.73853926,2910.7,2908.3,0.02750653]
[1769697849874,4.73853926,2910.7,2908.5,0.02750653]
[1769697851368,4.73853926,2910.7,2908.6,0.85952004]
[1769697851574,3.87963934,2910.6,2908.6,0.85952004]
[1769697851872,6.75002069,2910.7,2908.7,0.72]
[1769697851873,3.87963934,2910.4,2908.7,0.72]
[1769697853265,0.85901797,2910.3,2908.7,1.57946629]
[1769697853467,3.87963934,2910.2,2908.7,1.57946629]
[1769697853640,3.87963934,2910.2,2908.0,3.4387212]
[1769697853848,3.87963934,2910.2,2908.5,0.85954887]
[1769697854048,3.87963934,2910.0,2908.4,0.85955988]
[1769697854243,3.87963934,2910.0,2907.7,4.25301212]
[1769697854438,3.87963934,2910.0,2907.9,3.43883769]
[1769697854640,3.87963934,2910.0,2908.4,0.85957649]
[1769697854950,3.87963934,2910.0,2908.4,0.85957823]
[1769697855172,3.87963934,2909.8,2908.3,0.85958746]
[1769697855376,4.73883444,2909.7,2907.9,0.85972695]
[1769697856077,4.73883444,2909.7,2908.0,0.72]
[1769697856378,4.73883444,2909.7,2908.0,0.74750653]
[1769697856794,0.8591951,2909.7,2908.2,0.02750653]
[1769697857083,0.85918287,2909.8,2908.2,0.02750653]
[1769697857492,1.062966,2910.5,2908.4,4.28051865]
[1769697857493,4.94260534,2910.5,2908.4,4.28051865]
[1769697857787,3.43551205,2910.8,2908.9,0.02750653]
[1769697858087,3.43551205,2910.8,2909.1,0.02750653]
[1769697858288,0.81740218,2910.7,2909.1,0.02750653]
[1769697859478,1.67632269,2910.7,2909.2,5.11235489]
[1769697859691,1.67630218,2910.7,2909.4,0.02750653]
[1769697860073,1.67630218,2910.7,2909.3,0.72]
[1769697860381,1.67630218,2910.7,2909.4,0.72]
[1769697861327,1.67630218,2910.7,2909.2,0.85934277]
[1769697861456,1.67630218,2910.7,2909.5,0.72]
[1769697861652,1.67630218,2910.7,2909.2,0.85934277]
[1769697861994,1.67630218,2910.7,2909.3,0.72]
[1769697862362,4.39082953,2910.6,2909.2,0.85934277]
[1769697862560,4.39082953,2910.6,2909.3,0.72]
[1769697862743,4.39082953,2910.6,2909.2,0.85934277]
[1769697862964,0.51119019,2910.6,2909.3,0.72]
[1769697863168,0.001,2910.5,2909.3,0.72]
[1769697863785,0.52607295,2910.5,2909.3,0.72]
[1769697863986,0.85898845,2910.4,2908.5,4.25301212]
[1769697864288,0.85898845,2910.4,2909.1,0.85936239]
[1769697864289,4.73862779,2910.4,2909.1,0.85936239]
[1769697864988,4.73862779,2910.4,2908.9,0.85941617]
[1769697865171,3.87963934,2910.2,2909.2,0.72]
[1769697865374,0.87006546,2910.3,2909.3,0.85930857]
[1769697865547,0.85898845,2910.4,2909.3,0.85930857]
[1769697866184,3.43695382,2910.5,2909.3,0.85930857]
[1769697866559,0.85995894,2910.5,2909.3,0.85930857]
[1769697866970,0.85995894,2910.5,2909.3,0.85931323]
[1769697867168,0.85995894,2910.5,2909.2,1.57934174]
[1769697867656,0.85995894,2910.5,2909.3,0.72]
[1769697867858,2.12700924,2910.5,2909.3,0.72]
[1769697868271,2.12700924,2910.5,2909.3,0.85929524]
[1769697868272,6.55478728,2910.5,2909.3,0.85929524]
[1769697868467,6.55478728,2910.5,2909.4,0.72]
[1769697870085,0.001,2910.5,2909.4,0.72]
[1769697870387,0.001,2910.5,2909.5,0.85925416]
[1769697870750,0.001,2910.5,2909.6,0.02750653]
[1769697871077,0.001,2910.5,2909.5,0.85925416]
[1769697871698,0.001,2910.5,2909.6,0.72]
[1769697871880,0.4438778,2910.5,2909.6,0.72]
[1769697872210,4.87165584,2910.5,2909.6,0.72]
[1769697872408,0.85898845,2910.4,2909.6,0.72]
[1769697872792,0.85898845,2910.4,2909.6,1.57921769]
[1769697872990,5.28775282,2910.5,2909.6,1.57921769]
[1769697874185,5.28775282,2910.5,2909.6,0.72]
[1769697875015,5.28775282,2910.5,2909.1,3.4374739]
[1769697875317,0.85997478,2910.5,2909.7,0.72]
[1769697876403,0.001,2910.5,2909.7,1.57916886]
[1769697876782,0.001,2910.5,2909.7,0.85916886]
[1769697876981,0.001,2910.5,2909.8,0.72]
[1769697878381,0.001,2910.5,2909.9,0.85913605]
[1769697879708,0.85854596,2911.9,2909.9,5.3699805]
[1769697880008,4.76791658,2911.8,2909.9,5.3699805]
[1769697880207,4.76791658,2911.8,2910.1,0.02750653]
[1769697880408,4.76791658,2911.6,2909.9,5.3699805]
[1769697880627,5.33056873,2911.5,2909.9,5.3699805]
[1769697882528,0.85869341,2911.4,2909.9,5.3699805]
[1769697883432,5.62643306,2912.0,2910.2,4.48333792]
[1769697884240,5.62643306,2912.0,2910.3,1.57450653]
[1769697884442,0.85857545,2911.8,2910.4,0.85898845]
[1769697885742,5.62649203,2911.8,2910.4,0.85898845]
[1769697886820,0.001,2911.2,2910.4,0.85898845]
[1769697887740,0.001,2911.2,2910.5,2.267]
[1769697888241,0.001,2911.2,2910.3,0.85899661]
[1769697888418,0.001,2911.2,2910.6,0.72]
[1769697889041,4.76891658,2911.2,2910.7,0.72]
[1769697889542,0.001,2911.2,2910.7,0.72]
[1769697891947,0.001,2911.2,2910.7,1.57889586]
[1769697892336,0.001,2911.2,2910.7,0.72]
[1769697893248,4.76891658,2911.2,2909.9,0.85913605]
[1769697893412,4.76891658,2911.2,2910.0,2.267]
[1769697893612,0.001,2911.2,2910.0,6.75033792]
[1769697893840,0.001,2911.2,2910.1,0.02750653]
[1769697894055,0.001,2911.2,2910.0,6.75033792]
[1769697894733,4.76891658,2911.2,2910.0,2.267]
[1769697895151,0.8587819,2911.1,2910.1,3.126077]
[1769697896718,5.79435539,2911.1,2910.1,2.267]
[1769697896922,5.79435539,2911.1,2910.2,0.72]
[1769697897134,4.93557349,2910.7,2910.3,0.72]
[1769697898555,4.93557349,2910.7,2909.2,0.85933861]
[1769697898728,4.93557349,2910.7,2909.3,0.72]
[1769697899134,4.93557349,2910.5,2909.3,0.72]
[1769697899335,4.93557349,2910.3,2909.3,0.72]
[1769697900561,4.93557349,2910.2,2908.8,0.002]
[1769697900765,4.93557349,2910.1,2907.7,0.002]
[1769697900955,3.625,2910.2,2907.9,0.85972012]
[1769697900956,5.16914379,2909.8,2907.9,0.85972012]
[1769697901150,5.79479812,2909.6,2907.9,0.85972695]
[1769697901330,5.79479812,2909.6,2907.8,1.57973759]
[1769697901539,4.93557349,2909.2,2907.7,0.002]
[1769697901867,4.93557349,2909.2,2907.9,0.72]
[1769697903040,0.85937231,2909.1,2907.9,1.57970454]
[1769697903764,5.7949458,2909.1,2907.9,1.57970454]
[1769697903940,5.7949458,2909.1,2907.9,1.57972364]
[1769697904140,5.7949458,2909.1,2907.9,1.57970993]
[1769697904853,5.7949458,2909.1,2907.7,0.002]
[1769697905062,5.7949458,2909.1,2907.8,0.72]
[1769697905230,4.93557349,2908.9,2907.8,0.72]
[1769697905439,4.93557349,2908.9,2907.7,0.002]
[1769697905637,4.93557349,2908.9,2907.8,0.72]
[1769697906131,4.93557349,2908.9,2907.5,0.002]
[1769697906336,4.93557349,2908.9,2906.4,0.002]
[1769697906337,4.93557349,2908.7,2906.9,0.86001987]
[1769697906574,0.2335703,2908.8,2906.8,1.548]
[1769697906575,4.93557349,2908.5,2907.0,1.57998108]
[1769697907459,4.93557349,2908.3,2907.0,1.57998898]
[1769697908039,4.93557349,2908.3,2907.0,0.72]
[1769697908333,4.93557349,2908.3,2907.0,1.57999306]
[1769697909185,4.93557349,2908.3,2907.0,1.57998521]
[1769697909387,0.85966782,2908.1,2907.0,1.57998521]
[1769697910280,5.79524131,2908.1,2907.0,1.57998521]
[1769697910456,5.79524131,2908.1,2907.2,0.002]
[1769697913908,5.79524131,2908.1,2907.0,0.722]
[1769697914102,5.79524131,2908.1,2907.1,0.72]
[1769697914274,5.79530044,2907.9,2907.1,0.72]
[1769697915310,5.79530044,2907.9,2906.6,0.002]
[1769697915462,5.79530044,2907.9,2906.9,0.72]
[1769697919395,0.85972695,2907.9,2906.9,1.58000354]
[1769697919564,0.85972695,2907.9,2906.9,0.72]
[1769697919967,5.79530044,2907.9,2906.9,0.72]
[1769697920789,0.85972695,2907.9,2906.9,1.58001673]
[1769697920968,5.79530044,2907.9,2906.9,0.72]
[1769697921175,4.93557349,2907.8,2906.9,0.72]
[1769697922869,5.79535957,2907.7,2907.1,0.002]
[1769697923277,5.79535957,2907.7,2906.9,0.722]
[1769697926799,5.79535957,2907.7,2906.7,0.721]
[1769697927003,6.93445625,2907.6,2906.7,0.721]
[1769697927391,0.85984522,2907.5,2906.7,0.721]
[1769697928787,6.23785108,2907.5,2906.7,0.721]
[1769697930517,6.23785108,2907.5,2906.4,0.002]
[1769697930887,5.37800586,2907.3,2906.4,0.002]
[1769697931089,0.85984522,2907.5,2906.3,0.002]
[1769697931090,5.91580645,2907.2,2906.3,0.002]
[1769697931392,5.37800586,2907.0,2906.1,0.721]
[1769697931604,5.37800586,2906.9,2906.1,0.721]
[1769697932929,5.37800586,2906.9,2905.8,0.002]
[1769697933133,5.11082955,2906.7,2905.8,0.002]
[1769697933633,0.86008187,2906.7,2905.8,0.002]
[1769697934210,0.86008187,2906.7,2905.7,0.723]
[1769697934211,5.11082955,2906.6,2905.7,0.723]
[1769697935033,5.11082955,2906.6,2906.3,0.002]
[1769697935248,5.11082955,2906.6,2905.7,0.723]
[1769697935437,0.86008187,2906.7,2905.7,0.723]
[1769697935611,0.86008187,2906.7,2906.0,0.002]
[1769697935807,5.97091142,2906.7,2906.0,0.002]
[1769697936003,5.97091142,2906.7,2905.7,0.723]
[1769697936640,5.11082955,2906.6,2905.7,0.723]
[1769697936834,1.23009114,2906.5,2905.7,0.723]
[1769697937031,6.34092069,2906.5,2905.7,0.723]
[1769697937210,1.23009114,2906.5,2905.7,0.723]
[1769697937543,0.86017065,2906.4,2905.7,0.723]
[1769697938140,9.77034878,2906.7,2905.7,0.723]
[1769697938141,0.86011147,2906.6,2905.7,0.723]
[1769697938345,2.39492253,2906.6,2905.7,0.723]
[1769697938509,2.39492253,2906.6,2905.7,0.002]
[1769697938510,5.11082955,2906.5,2905.7,0.002]
[1769697939056,2.39492253,2906.6,2905.8,0.86034826]
[1769697939255,0.85996353,2907.1,2905.8,6.35725696]
[1769697939755,5.97079308,2907.1,2905.8,6.35725696]
[1769697940055,5.97079308,2907.1,2905.9,0.721]
[1769697940958,5.11082955,2907.0,2905.9,0.721]
[1769697941826,0.8600227,2906.9,2905.9,0.721]
[1769697942027,2.14512609,2906.9,2905.9,0.721]
[1769697942942,2.14512609,2906.9,2905.8,0.721]
[1769697942943,5.11082955,2906.8,2905.8,0.721]
[1769697943562,7.06454709,2907.4,2905.8,0.721]
[1769697943563,0.85990437,2907.3,2905.9,6.3572258]
[1769697943761,0.85981565,2907.6,2905.9,6.3572258]
[1769697944076,0.85981565,2907.6,2906.0,0.721]
[1769697944077,6.051913,2907.5,2906.0,0.721]
[1769697944440,6.051913,2907.5,2905.9,6.3572258]
[1769697944441,5.11082955,2907.3,2905.9,0.721]
[1769697944643,5.11082955,2907.3,2905.9,1.58131575]
[1769697944835,5.11082955,2907.3,2905.9,1.58131175]
[1769697945036,0.94108345,2907.5,2906.0,5.4969087]
[1769697945276,0.69117287,2907.4,2906.1,5.4969087]
[1769697945862,0.69117287,2907.4,2906.3,5.4969087]
[1769697945863,0.8598748,2907.4,2906.3,5.4969087]
[1769697947005,5.11182955,2907.7,2906.3,5.4969087]
[1769697947177,0.85981565,2907.6,2906.3,5.4969087]
[1769697947564,0.001,2906.7,2906.3,5.4969087]
[1769697948094,0.001,2906.7,2906.3,6.35708548]
[1769697948295,0.001,2906.7,2906.3,0.86017678]
[1769697948494,0.001,2906.7,2906.4,0.721]
[1769697948681,0.001,2906.7,2905.9,0.002]
[1769697948881,0.001,2906.7,2906.0,0.721]
[1769697950071,0.001,2906.7,2906.1,0.86023687]
[1769697950666,0.85991016,2907.3,2906.1,6.35714557]
[1769697951199,5.97073971,2907.3,2906.0,1.58127232]
[1769697951965,5.97073971,2907.3,2906.0,7.07818102]
[1769697952186,5.11182955,2907.7,2906.1,5.4969087]
[1769697952389,5.62201251,2907.6,2906.0,7.07818102]
[1769697952697,5.62201251,2907.6,2906.1,5.4969087]
[1769697952995,0.51118296,2907.6,2906.1,5.4969087]
[1769697953161,0.001,2907.7,2906.1,5.4969087]
[1769697953560,5.17301381,2907.6,2906.1,5.4969087]
[1769697953760,0.001,2907.7,2906.1,5.4969087]
[1769697954061,0.001,2907.7,2906.7,0.86008187]
[1769697954260,0.001,2907.7,2906.8,5.4969087]
[1769697954470,0.001,2907.7,2906.9,6.2179087]
[1769697955399,0.39024773,2908.1,2906.9,6.2179087]
[1769697955562,0.39024773,2908.1,2907.0,5.63026241]
[1769697956198,0.85952004,2908.6,2907.1,6.49022594]
[1769697956559,3.43898056,2908.7,2907.1,6.49022594]
[1769697956560,0.001,2908.7,2907.1,6.51773247]
[1769697956760,0.001,2908.7,2907.6,5.63026241]
[1769697956968,0.85925416,2909.6,2907.8,5.63026241]
[1769697957197,0.85925416,2909.6,2908.0,5.63026241]
[1769697957506,0.85925416,2909.6,2908.2,5.63026241]
[1769697957915,5.24694931,2909.5,2907.7,5.63026241]
[1769697958061,0.61062035,2909.4,2907.8,6.35126241]
[1769697958266,0.85931323,2909.3,2907.9,6.48998936]
[1769697960801,6.10626254,2909.3,2907.9,0.85972695]
[1769697961101,6.10626254,2909.3,2908.0,0.721]
[1769697961301,6.10626254,2909.3,2907.5,9.0696409]
[1769697961501,6.10626254,2909.3,2907.1,3.43979505]
[1769697961502,5.24694931,2909.1,2907.6,0.721]
[1769697961812,5.24694931,2909.1,2907.7,0.85976894]
[1769697962375,5.24694931,2909.1,2907.6,0.721]
[1769697962376,6.10635116,2909.0,2907.6,0.721]
[1769697962610,6.10635116,2909.0,2907.7,0.85978355]
[1769697963604,6.10635116,2909.0,2907.7,0.8597855]
[1769697963898,0.859388,2909.1,2907.7,6.49004791]